[Event "DMP Ekstraliga 2020"]
[Site "Krakow"]
[Date "2020.08.30"]
[Round "5.12"]
[White "Worek, Joanna"]
[Black "Kiolbasa, Oliwia"]
[Result "0-1"]
[ECO "C50"]
[WhiteElo "2326"]
[BlackElo "2160"]
[Annotator "ChessBase"]
[PlyCount "80"]
[EventDate "2020.08.26"]
[EventType "team-tourn"]
[EventCountry "POL"]
[SourceTitle "playchess.com"]
[Source "ChessBase"]
[SourceQuality "1"]
[WhiteTeam "Silesia Raciborz"]
[BlackTeam "Miedz Legnica"]
[TimeControl "30/5400+30:1800+30"]

1. e4 {[%emt 0:00:00]} e5 {[%emt 0:00:00]} 2. Nf3 {[%emt 0:00:00]} Nc6 {[%emt 0:00:00]} 3. Bc4 {[%emt 0:00:00]} Bc5 {[%emt 0:00:00]} 4. O-O {[%emt 0:00:11]} Nf6 {[%emt 0:00:30]} 5. d3 {[%emt 0:00:12]} O-O {[%emt 0:00:39]} 6. c3 {[%emt 0:00:08]} d6 {[%emt 0:00:25]} 7. a4 {[%emt 0:00:35]} a5 {[%emt 0:01:14]} 8. Nbd2 {[%emt 0:02:09]} Be6 {[%emt 0:01:38]} 9. Re1 {[%emt 0:01:19]} Qb8 {[%emt 0:09:00]} 10. h3 {[%emt 0:04:54]} Qa7 {[%emt 0:01:44]} 11. Qe2 {[%emt 0:01:31]} Rae8 {[%emt 0:25:03]} 12. Bb5 {[%emt 0:11:02]} Bd7 {[%emt 0:02:01]} 13. Nf1 {[%emt 0:01:31]} h6 {[%emt 0:02:50]} 14. Be3 {[%emt 0:13:14]} Ne7 {[%emt 0:13:37]} 15. Bxd7 {[%emt 0:12:38]} Nxd7 {[%emt 0:00:09]} 16. d4 {[%emt 0:01:55]} Bb6 {[%emt 0:06:29]} 17. Rad1 {[%emt 0:15:10]} Ng6 {[%emt 0:03:15]} 18. Ng3 {[%emt 0:01:36]} Nf6 {[%emt 0:03:55]} 19. Qc4 {[%emt 0:01:22]} c6 {[%emt 0:02:25]} 20. dxe5 {[%emt 0:02:28]} dxe5 {[%emt 0:01:17]} 21. Nf5 {[%emt 0:02:02]} Rd8 {[%emt 0:01:21]} 22. g3 {[%emt 0:08:43]} Bxe3 {[%emt 0:02:30]} 23. Nxe3 {[%emt 0:00:05]} Qb6 {[%emt 0:00:10]} 24. b3 {[%emt 0:00:49]} Rxd1 {[%emt 0:00:49]} 25. Rxd1 {[%emt 0:00:02]} Rd8 {[%emt 0:00:00]} 26. Rxd8+ {[%emt 0:05:02]} Qxd8 {[%emt 0:00:00]} 27. b4 {[%emt 0:01:09]} axb4 {[%emt 0:01:59]} 28. cxb4 {[%emt 0:00:13]} Qd7 {[%emt 0:00:51]} 29. Kg2 {[%emt 0:00:22]} b5 {[%emt 0:01:06]} 30. axb5 {[%emt 0:02:29]} cxb5 {[%emt 0:00:06]} 31. Qc2 {[%emt 0:30:23]} Qd6 {[%emt 0:34:58]} 32. Qb1 {[%emt 0:03:28]} Qc6 {[%emt 0:03:12]} 33. Ng4 {[%emt 0:02:52]} Nxe4 {[%emt 0:02:41]} 34. Kh2 {[%emt 0:04:47]} Nxf2 {[%emt 0:01:46]} 35. Ngxe5 {[%emt 0:01:30]} Nxe5 {[%emt 0:02:57]} 36. Nxe5 {[%emt 0:00:07]} Qe6 {[%emt 0:02:29]} 37. Qf1 {[%emt 0:00:02]} Ne4 {[%emt 0:01:55]} 38. Qa1 {[%emt 0:01:13]} Ng5 {[%emt 0:00:28]} 39. Qa8+ {[%emt 0:00:00]} Kh7 {[%emt 0:00:00]} 40. Ng4 {[%emt 0:00:00]} Qe2+ {[%emt 0:00:00]} 0-1

[Event "DMP Ekstraliga 2020"]
[Site "Krakow"]
[Date "2020.08.30"]
[Round "5.14"]
[White "Bartel, Mateusz"]
[Black "Dziuba, Marcin"]
[Result "1/2-1/2"]
[ECO "B31"]
[WhiteElo "2643"]
[BlackElo "2590"]
[Annotator "ChessBase"]
[PlyCount "53"]
[EventDate "2020.08.26"]
[EventType "team-tourn"]
[EventCountry "POL"]
[SourceTitle "playchess.com"]
[Source "ChessBase"]
[SourceQuality "1"]
[WhiteTeam "Polonia Wroclaw"]
[BlackTeam "Wieza Pegow"]
[TimeControl "30/5400+30:1800+30"]

1. e4 {[%emt 0:00:00]} c5 {[%emt 0:00:00]} 2. Nf3 {[%emt 0:00:03]} Nc6 {[%emt 0:00:00]} 3. Bb5 {[%emt 0:00:06]} g6 {[%emt 0:00:00]} 4. O-O {[%emt 0:00:08]} Bg7 {[%emt 0:00:00]} 5. Re1 {[%emt 0:00:06]} e5 {[%emt 0:01:04]} 6. a3 {[%emt 0:00:12]} Nge7 {[%emt 0:02:38]} 7. b4 {[%emt 0:00:13]} d6 {[%emt 0:08:30]} 8. c3 {[%emt 0:00:03]} O-O {[%emt 0:00:21]} 9. d3 {[%emt 0:00:04]} a6 {[%emt 0:09:53]} 10. Bc4 {[%emt 0:00:29]} b5 {[%emt 0:00:05]} 11. Bb3 {[%emt 0:01:55]} cxb4 {[%emt 0:02:07]} 12. axb4 {[%emt 0:00:41]} Bb7 {[%emt 0:05:43]} 13. Be3 {[%emt 0:07:36]} h6 {[%emt 0:02:59]} 14. Nbd2 {[%emt 0:08:24]} Kh7 {[%emt 0:05:20]} 15. d4 {[%emt 0:01:38]} exd4 {[%emt 0:00:25]} 16. Nxd4 {[%emt 0:01:26]} Rc8 {[%emt 0:00:34]} 17. N2f3 {[%emt 0:05:25]} Ne5 {[%emt 0:03:50]} 18. Nxe5 {[%emt 0:05:01]} dxe5 {[%emt 0:01:07]} 19. Ne2 {[%emt 0:00:12]} Qc7 {[%emt 0:02:58]} 20. Bc5 {[%emt 0:00:15]} Rfd8 {[%emt 0:00:23]} 21. Qc2 {[%emt 0:00:57]} Ng8 {[%emt 0:01:21]} 22. Qa2 {[%emt 0:11:03]} Rd7 {[%emt 0:02:33]} 23. Rad1 {[%emt 0:03:16]} Rcd8 {[%emt 0:00:35]} 24. Rxd7 {[%emt 0:01:57]} Rxd7 {[%emt 0:00:06]} 25. Ng3 {[%emt 0:00:11]} Nf6 {[%emt 0:01:21]} 26. f3 {[%emt 0:00:03]} Kg8 {[%emt 0:09:42]} 27. Qe2 {[%emt 0:12:59]} 1/2-1/2

[Event "DMP Ekstraliga 2020"]
[Site "Krakow"]
[Date "2020.08.30"]
[Round "5.15"]
[White "Hnydiuk, Aleksander"]
[Black "Gumularz, Szymon"]
[Result "0-1"]
[ECO "E62"]
[WhiteElo "2411"]
[BlackElo "2506"]
[Annotator "ChessBase"]
[PlyCount "63"]
[EventDate "2020.08.26"]
[EventType "team-tourn"]
[EventCountry "POL"]
[SourceTitle "playchess.com"]
[Source "ChessBase"]
[SourceQuality "1"]
[WhiteTeam "Wieza Pegow"]
[BlackTeam "Polonia Wroclaw"]
[TimeControl "30/5400+30:1800+30"]

1. Nf3 {[%emt 0:00:00]} d6 {[%emt 0:00:00]} 2. d4 {[%emt 0:00:00]} Nf6 {[%emt 0:00:00]} 3. c4 {[%emt 0:00:00]} g6 {[%emt 0:00:00]} 4. g3 {[%emt 0:00:10]} Bg7 {[%emt 0:00:00]} 5. Bg2 {[%emt 0:00:03]} O-O {[%emt 0:00:09]} 6. Nc3 {[%emt 0:00:14]} Nc6 {[%emt 0:01:54]} 7. O-O {[%emt 0:00:06]} e5 {[%emt 0:04:43]} 8. dxe5 {[%emt 0:00:12]} dxe5 {[%emt 0:00:08]} 9. Bg5 {[%emt 0:01:19]} Be6 {[%emt 0:01:31]} 10. Qa4 {[%emt 0:00:22]} Qc8 {[%emt 0:00:25]} 11. Bxf6 {[%emt 0:08:37]} Bxf6 {[%emt 0:00:34]} 12. Nd2 {[%emt 0:06:45]} Bg7 {[%emt 0:28:53]} 13. Nde4 {[%emt 0:18:34]} f5 {[%emt 0:05:10]} 14. Nc5 {[%emt 0:06:24]} e4 {[%emt 0:00:56]} 15. Rfd1 {[%emt 0:11:42]} Re8 {[%emt 0:23:56]} 16. Nd5 {[%emt 0:15:23]} Ne5 {[%emt 0:10:11]} 17. Qb3 {[%emt 0:04:35]} Bf7 {[%emt 0:02:50]} 18. Qxb7 {[%emt 0:05:16]} Nxc4 {[%emt 0:11:07]} 19. Rac1 {[%emt 0:03:36]} Nxb2 {[%emt 0:01:47]} 20. Rd2 {[%emt 0:00:35]} Qxb7 {[%emt 0:00:47]} 21. Nxb7 {[%emt 0:00:02]} Nd3 {[%emt 0:00:45]} 22. Rxc7 {[%emt 0:04:03]} Bxd5 {[%emt 0:01:38]} 23. exd3 {[%emt 0:00:01]} Rac8 {[%emt 0:00:34]} 24. Rd7 {[%emt 0:04:42]} Rc1+ {[%emt 0:01:46]} 25. Bf1 {[%emt 0:00:01]} e3 {[%emt 0:00:54]} 26. fxe3 {[%emt 0:00:28]} Bh6 {[%emt 0:00:31]} 27. Rxd5 {[%emt 0:03:01]} Bxe3+ {[%emt 0:00:03]} 28. Kg2 {[%emt 0:00:07]} Bxd2 {[%emt 0:00:10]} 29. d4 {[%emt 0:00:07]} Bb4 {[%emt 0:01:19]} 30. Bb5 {[%emt 0:00:50]} Rc2+ {[%emt 0:00:40]} 31. Kh3 {[%emt 0:30:21]} Re1 {[%emt 0:30:41]} 32. g4 0-1

[Event "DMP Ekstraliga 2020"]
[Site "Krakow"]
[Date "2020.08.30"]
[Round "5.16"]
[White "Tazbir, Marcin"]
[Black "Zilka, Stepan"]
[Result "1/2-1/2"]
[ECO "A08"]
[WhiteElo "2510"]
[BlackElo "2564"]
[Annotator "ChessBase"]
[PlyCount "68"]
[EventDate "2020.08.26"]
[EventType "team-tourn"]
[EventCountry "POL"]
[SourceTitle "playchess.com"]
[Source "ChessBase"]
[SourceQuality "1"]
[WhiteTeam "Polonia Wroclaw"]
[BlackTeam "Wieza Pegow"]
[TimeControl "30/5400+30:1800+30"]

1. Nf3 {[%emt 0:00:00]} d5 {[%emt 0:00:00]} 2. g3 {[%emt 0:00:00]} c5 {[%emt 0:00:43]} 3. Bg2 {[%emt 0:00:00]} Nc6 {[%emt 0:00:03]} 4. O-O {[%emt 0:00:35]} e5 {[%emt 0:00:10]} 5. c4 {[%emt 0:01:47]} d4 {[%emt 0:03:09]} 6. d3 {[%emt 0:00:07]} Nf6 {[%emt 0:02:06]} 7. a3 {[%emt 0:03:49]} a5 {[%emt 0:01:34]} 8. e3 {[%emt 0:03:09]} Be7 {[%emt 0:02:20]} 9. exd4 {[%emt 0:01:26]} exd4 {[%emt 0:06:10]} 10. Re1 {[%emt 0:05:31]} O-O {[%emt 0:00:14]} 11. Ne5 {[%emt 0:02:07]} Nxe5 {[%emt 0:00:22]} 12. Rxe5 {[%emt 0:00:05]} Bd6 {[%emt 0:00:32]} 13. Re1 {[%emt 0:00:17]} Bg4 {[%emt 0:03:06]} 14. Bf3 {[%emt 0:02:04]} Re8 {[%emt 0:04:07]} 15. Rxe8+ {[%emt 0:09:32]} Qxe8 {[%emt 0:00:04]} 16. Bxg4 {[%emt 0:02:29]} Nxg4 {[%emt 0:00:08]} 17. Qxg4 {[%emt 0:00:19]} Qe1+ {[%emt 0:00:14]} 18. Kg2 {[%emt 0:00:03]} Qxc1 {[%emt 0:00:06]} 19. Qe2 {[%emt 0:00:02]} Ra6 {[%emt 0:08:42]} 20. Qd2 {[%emt 0:01:13]} Qxd2 {[%emt 0:00:30]} 21. Nxd2 {[%emt 0:00:01]} f5 {[%emt 0:02:48]} 22. h4 {[%emt 0:04:27]} a4 {[%emt 0:04:09]} 23. Rb1 {[%emt 0:04:46]} Bc7 {[%emt 0:03:14]} 24. b3 {[%emt 0:04:16]} axb3 {[%emt 0:01:58]} 25. Nxb3 {[%emt 0:11:26]} Bd6 {[%emt 0:07:14]} 26. Ra1 {[%emt 0:01:07]} Ra4 {[%emt 0:02:08]} 27. Nc1 {[%emt 0:01:28]} h6 {[%emt 0:05:56]} 28. h5 {[%emt 0:05:01]} b6 {[%emt 0:02:45]} 29. Kf3 {[%emt 0:04:05]} Kf7 {[%emt 0:06:12]} 30. Ne2 {[%emt 0:01:08]} Kf6 {[%emt 0:00:17]} 31. Nf4 {[%emt 0:31:01]} Kg5 {[%emt 0:30:14]} 32. Ne6+ {[%emt 0:01:43]} Kf6 {[%emt 0:00:49]} 33. Nf4 {[%emt 0:00:04]} Kg5 {[%emt 0:00:18]} 34. Ne6+ {[%emt 0:06:22]} Kf6 {[%emt 0:00:02]} 1/2-1/2

[Event "DMP Ekstraliga 2020"]
[Site "Krakow"]
[Date "2020.08.30"]
[Round "5.17"]
[White "Plat, Vojtech"]
[Black "Wieczorek, Oskar"]
[Result "0-1"]
[ECO "A48"]
[WhiteElo "2566"]
[BlackElo "2493"]
[Annotator "ChessBase"]
[PlyCount "90"]
[EventDate "2020.08.26"]
[EventType "team-tourn"]
[EventCountry "POL"]
[SourceTitle "playchess.com"]
[Source "ChessBase"]
[SourceQuality "1"]
[WhiteTeam "Wieza Pegow"]
[BlackTeam "Polonia Wroclaw"]
[TimeControl "30/5400+30:1800+30"]

1. d4 {[%emt 0:00:00]} Nf6 {[%emt 0:00:12]} 2. Nf3 {[%emt 0:00:00]} g6 {[%emt 0:00:13]} 3. c4 {[%emt 0:00:16]} Bg7 {[%emt 0:00:26]} 4. g3 {[%emt 0:00:05]} c5 {[%emt 0:00:41]} 5. Bg2 {[%emt 0:00:11]} O-O {[%emt 0:01:05]} 6. O-O {[%emt 0:00:04]} cxd4 {[%emt 0:00:10]} 7. Nxd4 {[%emt 0:00:07]} d5 {[%emt 0:00:33]} 8. cxd5 {[%emt 0:00:08]} Nxd5 {[%emt 0:00:06]} 9. Nb5 {[%emt 0:00:06]} Be6 {[%emt 0:00:35]} 10. Bxd5 {[%emt 0:02:44]} Bxd5 {[%emt 0:01:29]} 11. N1c3 {[%emt 0:00:07]} e6 {[%emt 0:02:29]} 12. Nxd5 {[%emt 0:00:49]} exd5 {[%emt 0:02:43]} 13. Bf4 {[%emt 0:02:53]} Nc6 {[%emt 0:07:17]} 14. Qd2 {[%emt 0:05:08]} a6 {[%emt 0:07:34]} 15. Nc3 {[%emt 0:00:04]} d4 {[%emt 0:00:47]} 16. Na4 {[%emt 0:00:24]} Re8 {[%emt 0:04:12]} 17. Rfe1 {[%emt 0:08:29]} Bf8 {[%emt 0:10:08]} 18. a3 {[%emt 0:09:48]} b5 {[%emt 0:07:29]} 19. Rac1 {[%emt 0:00:16]} Ne5 {[%emt 0:00:51]} 20. Rc5 {[%emt 0:10:20]} Bxc5 {[%emt 0:04:03]} 21. Nxc5 {[%emt 0:00:05]} Nc4 {[%emt 0:09:36]} 22. Qb4 {[%emt 0:00:55]} Qd5 {[%emt 0:03:00]} 23. b3 {[%emt 0:00:33]} Ne5 {[%emt 0:00:54]} 24. Bxe5 {[%emt 0:01:00]} Rxe5 {[%emt 0:00:45]} 25. Nd3 {[%emt 0:00:05]} a5 {[%emt 0:01:09]} 26. Qd2 {[%emt 0:00:04]} Ree8 {[%emt 0:00:50]} 27. Rb1 {[%emt 0:00:50]} Qe4 {[%emt 0:03:10]} 28. Rb2 {[%emt 0:00:06]} Rec8 {[%emt 0:04:31]} 29. Nf4 {[%emt 0:00:07]} Rc3 {[%emt 0:01:24]} 30. f3 {[%emt 0:00:15]} Qe5 {[%emt 0:03:29]} 31. Kf2 {[%emt 0:30:30]} Qe3+ {[%emt 0:30:50]} 32. Qxe3 {[%emt 0:00:40]} dxe3+ {[%emt 0:00:06]} 33. Kf1 {[%emt 0:00:05]} a4 {[%emt 0:00:50]} 34. bxa4 {[%emt 0:00:15]} bxa4 {[%emt 0:00:05]} 35. Ra2 {[%emt 0:00:07]} Rb8 {[%emt 0:02:48]} 36. Nd5 {[%emt 0:00:07]} Rc1+ {[%emt 0:00:12]} 37. Kg2 {[%emt 0:00:01]} Rb3 {[%emt 0:00:09]} 38. f4 {[%emt 0:00:11]} f5 {[%emt 0:00:52]} 39. Nb4 {[%emt 0:00:19]} Rcc3 {[%emt 0:03:03]} 40. Nc2 {[%emt 0:00:00]} Kf7 {[%emt 0:00:00]} 41. Kf3 {[%emt 0:00:00]} Rb1 {[%emt 0:00:00]} 42. Nd4 {[%emt 0:00:00]} Rd1 {[%emt 0:00:00]} 43. Nb5 {[%emt 0:00:00]} Rb3 {[%emt 0:00:00]} 44. Na7 {[%emt 0:00:00]} Rf1+ {[%emt 0:00:00]} 45. Kg2 {[%emt 0:00:00]} Rc1 {[%emt 0:00:00]} 0-1

[Event "DMP Ekstraliga 2020"]
[Site "Krakow"]
[Date "2020.08.30"]
[Round "5.18"]
[White "Zawadzka, Jolanta"]
[Black "Majdan, Joanna"]
[Result "1-0"]
[ECO "B32"]
[WhiteElo "2419"]
[BlackElo "2325"]
[Annotator "ChessBase"]
[PlyCount "67"]
[EventDate "2020.08.26"]
[EventType "team-tourn"]
[EventCountry "POL"]
[SourceTitle "playchess.com"]
[Source "ChessBase"]
[SourceQuality "1"]
[WhiteTeam "Polonia Wroclaw"]
[BlackTeam "Wieza Pegow"]
[TimeControl "30/5400+30:1800+30"]

1. e4 {[%emt 0:00:00]} c5 {[%emt 0:00:00]} 2. Nf3 {[%emt 0:00:00]} Nc6 {[%emt 0:00:00]} 3. d4 {[%emt 0:00:00]} cxd4 {[%emt 0:00:00]} 4. Nxd4 {[%emt 0:00:00]} e5 {[%emt 0:00:00]} 5. Nb5 {[%emt 0:00:00]} d6 {[%emt 0:00:00]} 6. c4 {[%emt 0:00:00]} Be7 {[%emt 0:00:58]} 7. N1c3 {[%emt 0:00:24]} a6 {[%emt 0:00:06]} 8. Na3 {[%emt 0:00:04]} Be6 {[%emt 0:00:14]} 9. Nc2 {[%emt 0:01:08]} Rc8 {[%emt 0:01:32]} 10. Be2 {[%emt 0:00:37]} Nf6 {[%emt 0:00:17]} 11. O-O {[%emt 0:00:24]} O-O {[%emt 0:00:22]} 12. Bd2 {[%emt 0:00:13]} Nd4 {[%emt 0:04:26]} 13. Nxd4 {[%emt 0:00:41]} exd4 {[%emt 0:00:07]} 14. Nd5 {[%emt 0:00:18]} Bxd5 {[%emt 0:03:05]} 15. exd5 {[%emt 0:01:22]} Qb6 {[%emt 0:05:55]} 16. Bd3 {[%emt 0:07:28]} Rfe8 {[%emt 0:09:05]} 17. b3 {[%emt 0:03:14]} Nd7 {[%emt 0:10:29]} 18. Bf5 {[%emt 0:08:12]} Rcd8 {[%emt 0:02:33]} 19. Re1 {[%emt 0:04:29]} g6 {[%emt 0:04:53]} 20. Bxd7 {[%emt 0:06:47]} Rxd7 {[%emt 0:00:10]} 21. Re4 {[%emt 0:00:24]} Rc8 {[%emt 0:09:47]} 22. Qe2 {[%emt 0:04:04]} Qd8 {[%emt 0:06:35]} 23. Re1 {[%emt 0:01:19]} Bf6 {[%emt 0:00:32]} 24. Qd3 {[%emt 0:14:12]} Kg7 {[%emt 0:10:37]} 25. Bc1 {[%emt 0:06:14]} b5 {[%emt 0:01:01]} 26. cxb5 {[%emt 0:03:14]} Rc3 {[%emt 0:00:56]} 27. Qd2 {[%emt 0:00:28]} Be5 {[%emt 0:08:06]} 28. bxa6 {[%emt 0:02:35]} Rdc7 {[%emt 0:02:24]} 29. Qh6+ {[%emt 0:04:20]} Kg8 {[%emt 0:00:02]} 30. Bd2 {[%emt 0:00:27]} Rc2 {[%emt 0:02:31]} 31. Bg5 {[%emt 0:33:21]} f6 {[%emt 0:30:58]} 32. f4 {[%emt 0:05:27]} Rxa2 {[%emt 0:01:24]} 33. fxe5 {[%emt 0:00:32]} Rcc2 {[%emt 0:00:50]} 34. exf6 {[%emt 0:01:18]} 1-0

[Event "DMP Ekstraliga 2020"]
[Site "Krakow"]
[Date "2020.08.30"]
[Round "5.19"]
[White "Golubka, Petro"]
[Black "Antoniewski, Rafal"]
[Result "1-0"]
[ECO "B40"]
[WhiteElo "2495"]
[BlackElo "2490"]
[Annotator "ChessBase"]
[PlyCount "126"]
[EventDate "2020.08.26"]
[EventType "team-tourn"]
[EventCountry "POL"]
[SourceTitle "playchess.com"]
[Source "ChessBase"]
[SourceQuality "1"]
[WhiteTeam "Hetman Plock"]
[BlackTeam "Wrzos Miedzyborow"]
[TimeControl "30/5400+30:1800+30"]

1. e4 {[%emt 0:01:17]} c5 {[%emt 0:00:00]} 2. Nf3 {[%emt 0:00:10]} e6 {[%emt 0:00:19]} 3. g3 {[%emt 0:02:51]} Nc6 {[%emt 0:01:20]} 4. Bg2 {[%emt 0:00:05]} Nf6 {[%emt 0:01:34]} 5. d3 {[%emt 0:00:29]} d6 {[%emt 0:07:21]} 6. O-O {[%emt 0:00:30]} Be7 {[%emt 0:00:02]} 7. Re1 {[%emt 0:01:44]} O-O {[%emt 0:00:06]} 8. c3 {[%emt 0:01:45]} Bd7 {[%emt 0:07:56]} 9. Nbd2 {[%emt 0:02:39]} Qc7 {[%emt 0:01:18]} 10. a3 {[%emt 0:01:58]} b5 {[%emt 0:06:16]} 11. d4 {[%emt 0:01:04]} e5 {[%emt 0:05:24]} 12. d5 {[%emt 0:01:21]} Na5 {[%emt 0:00:20]} 13. b3 {[%emt 0:00:05]} c4 {[%emt 0:05:28]} 14. b4 {[%emt 0:04:07]} Nb7 {[%emt 0:00:05]} 15. Nh4 {[%emt 0:01:26]} a5 {[%emt 0:01:22]} 16. Nf5 {[%emt 0:02:56]} Bd8 {[%emt 0:04:33]} 17. Ne3 {[%emt 0:03:10]} g6 {[%emt 0:05:48]} 18. Ndf1 {[%emt 0:10:19]} Re8 {[%emt 0:08:28]} 19. Nc2 {[%emt 0:06:34]} Qc8 {[%emt 0:00:15]} 20. Bg5 {[%emt 0:05:23]} Be7 {[%emt 0:03:35]} 21. Qd2 {[%emt 0:02:25]} Qd8 {[%emt 0:00:17]} 22. h4 {[%emt 0:01:09]} Qb6 {[%emt 0:07:21]} 23. Nfe3 {[%emt 0:05:16]} a4 {[%emt 0:00:54]} 24. Bf3 {[%emt 0:03:06]} h5 {[%emt 0:02:21]} 25. Bxf6 {[%emt 0:04:50]} Bxf6 {[%emt 0:00:06]} 26. Qe2 {[%emt 0:00:39]} Bg7 {[%emt 0:00:46]} 27. Bxh5 {[%emt 0:01:32]} gxh5 {[%emt 0:01:15]} 28. Qxh5 {[%emt 0:00:06]} Qd8 {[%emt 0:00:52]} 29. Ng4 {[%emt 0:01:06]} Bxg4 {[%emt 0:12:39]} 30. Qxg4 {[%emt 0:00:03]} Kh7 {[%emt 0:00:19]} 31. Ne3 {[%emt 0:30:17]} Bh6 {[%emt 0:30:31]} 32. Nf5 {[%emt 0:05:55]} Qf6 {[%emt 0:00:35]} 33. Rad1 {[%emt 0:07:10]} Rg8 {[%emt 0:01:16]} 34. Qh3 {[%emt 0:00:39]} Rg6 {[%emt 0:03:33]} 35. Kf1 {[%emt 0:02:53]} Rag8 {[%emt 0:01:11]} 36. Ke2 {[%emt 0:00:46]} Qd8 {[%emt 0:02:41]} 37. Rg1 {[%emt 0:01:10]} Qd7 {[%emt 0:01:45]} 38. g4 {[%emt 0:04:37]} Bf4 {[%emt 0:01:36]} 39. g5 {[%emt 0:01:18]} f6 {[%emt 0:01:40]} 40. Qf3 {[%emt 0:00:00]} Kh8 {[%emt 0:00:00]} 41. Rg4 {[%emt 0:00:00]} Qh7 {[%emt 0:00:00]} 42. Rdg1 {[%emt 0:00:00]} Rf8 {[%emt 0:00:00]} 43. gxf6 {[%emt 0:00:00]} Rfxf6 {[%emt 0:00:00]} 44. h5 {[%emt 0:00:00]} Rxg4 {[%emt 0:00:00]} 45. Qxg4 {[%emt 0:00:00]} Qf7 {[%emt 0:00:00]} 46. h6 {[%emt 0:00:00]} Rxh6 {[%emt 0:01:52]} 47. Nxh6 {[%emt 0:00:00]} Bxh6 {[%emt 0:00:02]} 48. Qe6 {[%emt 0:00:18]} Qxe6 {[%emt 0:03:36]} 49. dxe6 {[%emt 0:00:16]} Bf8 {[%emt 0:00:01]} 50. Rd1 {[%emt 0:00:11]} Nd8 {[%emt 0:00:23]} 51. Rd5 {[%emt 0:00:04]} Nxe6 {[%emt 0:00:06]} 52. Rxb5 {[%emt 0:00:05]} Nf4+ {[%emt 0:00:50]} 53. Kf3 {[%emt 0:04:38]} Kg7 {[%emt 0:00:29]} 54. Ra5 {[%emt 0:00:41]} Kf6 {[%emt 0:00:13]} 55. Rxa4 {[%emt 0:00:32]} d5 {[%emt 0:00:04]} 56. Ra6+ {[%emt 0:01:48]} Kg5 {[%emt 0:00:13]} 57. exd5 {[%emt 0:01:43]} Nxd5 {[%emt 0:02:39]} 58. Rc6 {[%emt 0:02:49]} Nxc3 {[%emt 0:00:07]} 59. Rxc4 {[%emt 0:00:15]} Nb1 {[%emt 0:00:02]} 60. Rc8 {[%emt 0:00:19]} Be7 {[%emt 0:00:23]} 61. b5 {[%emt 0:01:32]} Bxa3 {[%emt 0:05:43]} 62. b6 {[%emt 0:00:17]} Kf5 {[%emt 0:00:13]} 63. Rc6 {[%emt 0:02:07]} Nd2+ {[%emt 0:00:49]} 1-0

[Event "DMP Ekstraliga 2020"]
[Site "Krakow"]
[Date "2020.08.30"]
[Round "5.20"]
[White "Cyborowski, Lukasz"]
[Black "Pultinevicius, Paulius"]
[Result "1-0"]
[ECO "A10"]
[WhiteElo "2508"]
[BlackElo "2519"]
[Annotator "ChessBase"]
[PlyCount "97"]
[EventDate "2020.08.26"]
[EventType "team-tourn"]
[EventCountry "POL"]
[SourceTitle "playchess.com"]
[Source "ChessBase"]
[SourceQuality "1"]
[WhiteTeam "Wrzos Miedzyborow"]
[BlackTeam "Hetman Plock"]
[TimeControl "30/5400+30:1800+30"]

1. c4 {[%emt 0:00:00]} g6 {[%emt 0:00:21]} 2. Nc3 {[%emt 0:05:37]} c5 {[%emt 0:02:09]} 3. Nf3 {[%emt 0:01:44]} Bg7 {[%emt 0:01:06]} 4. d4 {[%emt 0:09:00]} cxd4 {[%emt 0:00:31]} 5. Nxd4 {[%emt 0:00:06]} Nc6 {[%emt 0:00:10]} 6. e3 {[%emt 0:04:47]} Nf6 {[%emt 0:00:55]} 7. Be2 {[%emt 0:00:47]} O-O {[%emt 0:01:07]} 8. O-O {[%emt 0:00:06]} d5 {[%emt 0:03:53]} 9. cxd5 {[%emt 0:03:30]} Nb4 {[%emt 0:05:41]} 10. Bf3 {[%emt 0:11:33]} Nbxd5 {[%emt 0:00:40]} 11. Nxd5 {[%emt 0:01:59]} Nxd5 {[%emt 0:00:04]} 12. Qb3 {[%emt 0:00:31]} Nb6 {[%emt 0:09:17]} 13. Rd1 {[%emt 0:03:32]} Bd7 {[%emt 0:00:05]} 14. a4 {[%emt 0:24:30]} e5 {[%emt 0:04:16]} 15. Nb5 {[%emt 0:00:32]} Qh4 {[%emt 0:01:01]} 16. e4 {[%emt 0:11:25]} Be6 {[%emt 0:01:30]} 17. Qe3 {[%emt 0:00:28]} Nc4 {[%emt 0:04:44]} 18. Qe1 {[%emt 0:00:16]} Rfc8 {[%emt 0:09:12]} 19. b3 {[%emt 0:01:41]} Nb6 {[%emt 0:00:03]} 20. Qe3 {[%emt 0:01:04]} Bf8 {[%emt 0:00:56]} 21. Nd6 {[%emt 0:02:24]} Rc2 {[%emt 0:02:21]} 22. a5 {[%emt 0:07:13]} Nd7 {[%emt 0:04:53]} 23. Ba3 {[%emt 0:00:07]} Bh6 {[%emt 0:00:53]} 24. Qe1 {[%emt 0:00:06]} Nf6 {[%emt 0:01:17]} 25. Rd3 {[%emt 0:03:54]} b6 {[%emt 0:12:17]} 26. a6 {[%emt 0:02:36]} Nd7 {[%emt 0:01:19]} 27. Bd1 {[%emt 0:02:42]} Rc6 {[%emt 0:00:36]} 28. b4 {[%emt 0:01:04]} Bf8 {[%emt 0:00:44]} 29. b5 {[%emt 0:00:12]} Rc7 {[%emt 0:00:26]} 30. g3 {[%emt 0:00:43]} Qf6 {[%emt 0:01:42]} 31. Rf3 {[%emt 0:30:08]} Qg7 {[%emt 0:30:38]} 32. Rc3 {[%emt 0:00:05]} Rxc3 {[%emt 0:12:52]} 33. Qxc3 {[%emt 0:00:05]} Qf6 {[%emt 0:00:03]} 34. Rc1 {[%emt 0:01:42]} Bh3 {[%emt 0:01:08]} 35. Qc7 {[%emt 0:00:40]} Rd8 {[%emt 0:01:47]} 36. Be2 {[%emt 0:00:31]} Be7 {[%emt 0:02:56]} 37. Bf1 {[%emt 0:00:31]} Bxf1 {[%emt 0:00:53]} 38. Rxf1 {[%emt 0:00:02]} Nf8 {[%emt 0:00:13]} 39. Qxa7 {[%emt 0:01:02]} Ne6 {[%emt 0:02:43]} 40. Qxb6 {[%emt 0:00:00]} Nd4 {[%emt 0:00:00]} 41. Bc5 {[%emt 0:00:00]} Bxd6 {[%emt 0:00:00]} 42. a7 {[%emt 0:00:00]} Nf3+ {[%emt 0:00:00]} 43. Kg2 {[%emt 0:00:00]} Nd2 {[%emt 0:00:00]} 44. Bxd6 {[%emt 0:00:00]} Nc4 {[%emt 0:01:51]} 45. Qc6 {[%emt 0:00:00]} Nxd6 {[%emt 0:00:59]} 46. a8=Q {[%emt 0:00:00]} Rxa8 {[%emt 0:00:08]} 47. Qxa8+ {[%emt 0:00:00]} Kg7 {[%emt 0:00:03]} 48. Qc6 {[%emt 0:00:00]} Qe7 {[%emt 0:00:56]} 49. Rd1 {[%emt 0:00:00]} 1-0